Cogmind - Beta 13 @@@ ROGUE MODE // 2024.03.31 @ 14:34:18 Player: terics Result: Destroyed by G-34 Mercenary with Small Laser Performance ------------- Evolutions (0) 0 Regions Visited (1) 200 Robots Destroyed (0) 0 Value Destroyed (0) 0 Prototype IDs (0) 0 Alien Tech Used (0) 0 Bonus (0) 0 TOTAL SCORE: 200 Bonus ------- None Cogmind --------- Core Integrity 0/250 Matter 291/300 Energy 100/100 System Corruption 0% Temperature Cool (6) Movement Core (100) Ox1 Location -10/Materials Parts ------- > --- POWER (1) -------- (None) > --- PROPULSION (2) --- (None) > --- UTILITY (2) ------ Small Storage Unit > --- WEAPON (2) ------- (None) > --- INVENTORY (8) ---- Ion Engine Light Treads Light Treads Aluminum Leg Aluminum Leg Medium Laser Peak State ------------ > --- POWER ------------ Ion Engine > --- PROPULSION ------- Compact Wheel Compact Wheel > --- UTILITY ---------- Small Storage Unit > --- WEAPON ----------- EM Pulse Gun Small Laser > --- INVENTORY -------- Ion Engine Light Treads Light Treads Aluminum Leg Aluminum Leg Medium Laser [Rating: 6] Favorites ----------- Power Ion Engine Engine Ion Engine Propulsion Compact Wheel Wheel Compact Wheel Utility Small Storage Unit Storage Small Storage Unit Weapon EM Pulse Gun Energy Gun EM Pulse Gun Build | -11 -10 ------- Run | Yrd Mat Slots Evolved . | . . Power . | . . Propulsion . | . . Utility . | . . Weapon . | . . Parts Attached 6 | 6 . Power 1 | 1 . Engine 1 | 1 . Core . | . . Reactor . | . . Propulsion 2 | 2 . Treads . | . . Leg . | . . Wheel 2 | 2 . Hover . | . . Flight . | . . Utility 1 | 1 . Device . | . . Storage 1 | 1 . Processor . | . . Hackware . | . . Protection . | . . Artifact . | . . Weapon 2 | 2 . Energy Gun 2 | 2 . Energy Cannon . | . . Ballistic Gun . | . . Ballistic Cannon . | . . Launcher . | . . Special Weapon . | . . Impact Weapon . | . . Slashing Weapon . | . . Piercing Weapon . | . . Special Melee Weapon . | . . Unidentified Prototypes . | . . Parts Lost 5 | . 5 Power 1 | . 1 Propulsion 2 | . 2 Utility . | . . Weapon 2 | . 2 Highest Loss Streak 5 | . 5 To Critical Strikes . | . . Average Slot Usage (%) 63 | . 63 Engine 8 | . 8 Wheel 21 | . 21 Storage 14 | . 14 Energy Gun 17 | . 17 Naked Turns . | . . Heaviest Build 13 | 13 13 Greatest Support 32 | 32 32 Greatest Overweight (x) 4 | 4 . Average Overweight (x) . | 1 . Largest Inventory Capacity 8 | 8 8 Average Capacity 7 | 7 8 Most Carried 7 | 7 6 Average Carried 5 | 4 6 Final Capacity 8 | 8 8 Final Carried 6 | 6 6 Class Distribution -------------------- 100% | Mutant Dominant Class ---------------- Mutant | -10/Materials Resources | -11 -10 ----------- Run | Yrd Mat Matter Collected 226 | 226 . Remotely . | . . Salvage Created . | . . Parts . | . . Haulers Intercepted . | . . Recyclers Shooed . | . . Parts Field Recycled . | . . Retrieved Matter . | . . Parts Self-Destructed . | . . Prevented . | . . Kills | -11 -10 ------- Run | Yrd Mat Combat Hostiles Destroyed . | . . Classes Destroyed . | . . Best Kill Streak . | . . Combat Bots Only . | . . Max Kills in Single Turn . | . . Gunslinging . | . . Exploded . | . . Melee . | . . Uniques/NPCs Destroyed . | . . Combat | -11 -10 -------- Run | Yrd Mat Hostile Shots Fired 57 | . 57 Missed 11 | . 11 Damage Taken 605 | . 605 Core 259 | . 259 Absorbed by Shields . | . . Core Remaining (%) 100 | 100 . Volleys Fired . | . . Largest . | . . Hottest . | . . Shots Fired . | . . Gun . | . . Cannon . | . . Launcher . | . . Special . | . . Kinetic . | . . Thermal . | . . Explosive . | . . Electromagnetic . | . . Robot Hit Streak . | . . Robot Miss Streak . | . . Penetration Max . | . . Secondary Targets . | . . Shots Hit Robots . | . . Core Hits . | . . Critical Kills . | . . Critical Parts Destroyed . | . . Critical Strikes . | . . Melee Attacks . | . . Impact . | . . Slashing . | . . Piercing . | . . Sneak Attacks . | . . Combat Hostiles . | . . Follow-up Attacks . | . . Damage Inflicted . | . . Guns . | . . Cannons . | . . Explosions . | . . Melee . | . . Ramming . | . . Kinetic . | . . Thermal . | . . Explosive . | . . Electromagnetic . | . . Impact . | . . Slashing . | . . Piercing . | . . Highest Corruption . | . . Average Corruption . | . . Corruption Purged . | . . Corruption Blocked . | . . Overload Shots . | . . Overflow Damage . | . . Projectiles . | . . Explosions . | . . Melee . | . . Knockbacks . | . . Impact . | . . Kinetic . | . . Secondary . | . . Self-Inflicted Damage . | . . Shots . | . . Rammed . | . . Targets Rammed . | . . Kicked . | . . Crushed . | . . Highest Temperature 7 | . 7 Average Temperature 7 | . 7 Received Heat Transfer 360 | . 360 Siege Activations . | . . Robots Corrupted . | . . Combat Hostiles . | . . Parts Fried . | . . Impact Corruptions . | . . Robots Melted . | . . Combat Hostiles . | . . Parts Melted . | . . Heat Transferred . | . . Parts Sabotaged . | . . Parts Stolen . | . . Parts Stripped . | . . Power Chain Reactions . | . . Alert | -11 -10 ------- Run | Yrd Mat Peak Influence 4 | . 4 Initial . | . . Average 1 | . 2 Maximum Alert Level . | . . Low Security (%) 100 | 100 100 Level 1 . | . . Level 2 . | . . Level 3 . | . . Level 4 . | . . Level 5 . | . . High Security . | . . Max Security . | . . Squads Dispatched . | . . Investigation . | . . Extermination . | . . Reinforcement . | . . Assault . | . . Garrison . | . . Intercept . | . . Searches Triggered . | . . Construction Impeded . | . . Haulers Reinforced . | . . Active Scanning Responses . | . . Cargo Convoy Interrupts . | . . Stealth | -11 -10 --------- Run | Yrd Mat Distress Signals . | . . Communications Jammed . | . . Distress Signals . | . . Times Spotted 2 | . 2 Peak Tracking Total 2 | . 2 Tactical Retreats . | . . Traps | -11 -10 ------- Run | Yrd Mat Traps Triggered . | . . Indirectly . | . . Trap Hack Attempts . | . . Triggered . | . . Disarmed . | . . Reprogrammed . | . . Reused . | . . Traps Extracted . | . . Installed . | . . Triggered . | . . Machines | -11 -10 ---------- Run | Yrd Mat Machines Disabled . | . . Max in Single Turn . | . . Machines Repaired . | . . Machines Dismantled . | . . Machines Sabotaged . | . . Overloaded Fab Kills . | . . Hacking | -11 -10 --------- Run | Yrd Mat Machines Accessed 1 | . 1 Terminals 1 | . 1 Fabricators . | . . Repair Stations . | . . Recycling Units . | . . Scanalyzers . | . . Garrison Access . | . . Total Hacks 5 | . 5 Successful 3 | . 3 Failed 2 | . 2 Catastrophic . | . . Database Lockouts . | . . Manual 4 | . 4 Terminals 5 | . 5 Fabricators . | . . Repair Stations . | . . Recycling Units . | . . Scanalyzers . | . . Garrison Access . | . . Terminal Hacks 2 | . 2 Record 1 | . 1 Locate Traps 1 | . 1 Fabricator Hacks . | . . Repair Station Hacks . | . . Recycling Unit Hacks . | . . Scanalyzer . | . . Garrison Access Hacks . | . . Unauthorized Hacks 1 | . 1 Terminals 1 | . 1 Botnet 1 | . 1 Fabricators . | . . Repair Stations . | . . Recycling Units . | . . Scanalyzers . | . . Garrison Access . | . . Data Cores Recovered . | . . Used . | . . Hacking Detections . | . . Full Trace Events . | . . Feedback Events . | . . Feedback Blocked . | . . Robot Schematics Acquired . | . . Robots Built . | . . Authchips . | . . Time . | . . Total Robot Build Rating . | . . Part Schematics Acquired . | . . Parts Built . | . . Authchips . | . . Time . | . . Total Part Build Rating . | . . Parts Repaired . | . . Time . | . . Parts Recycled . | . . Recycled Matter . | . . Retrieved Matter . | . . Retrieved Components . | . . Parts Scanalyzed . | . . Part Schematics Acquired . | . . Parts Damaged . | . . Bothacking | -11 -10 ------------ Run | Yrd Mat Used RIF Installer . | . . Robots Hacked . | . . Non-combat . | . . Combat . | . . Robot Hacks Applied . | . . Relay Couplers Released . | . . Fabnet Peak Effective % . | . . Robots Rewired . | . . Allies Hacked . | . . Hacks Repelled . | . . Allies | -11 -10 -------- Run | Yrd Mat Total Allies . | . . Largest Group . | . . Highest-Rated Group . | . . Highest-Rated Ally . | . . Total Orders . | . . Ally Attacks . | . . Total Damage . | . . Kills . | . . Allies Corrupted . | . . Allies Melted . | . . Intel | -11 -10 ------- Run | Yrd Mat Robot Analysis Total . | . . Derelict Logs Recovered . | . . Drone Launches . | . . Drone Recoveries . | . . Exploration | -11 -10 ------------- Run | Yrd Mat Turns Passed 193 | 79 114 Spaces Moved 100 | 47 53 Core 22 | 22 . Treads . | . . Legs . | . . Wheels 78 | 25 53 Hover . | . . Flight . | . . Fastest Speed 50 | 50 100 Average Speed 117 | 136 100 Slowest Speed 250 | 250 100 Overloaded Moves . | . . Propulsion Burnouts . | . . Robots Hopped . | . . Cave-ins Triggered . | . . Exploration Rate (%) 9 | 4 14 Regions Visited 1 Branch Regions . Pre-discovered Areas . | . . Known Exits Taken . | . . Unknown Exits Taken 1 | 1 . Scrap Searched . | . . Spaces Dug . | . . Terrain Destroyed . | . . Melee . | . . Projectile . | . . AOE . | . . Terrain Rammed . | . . Walls Destroyed . | . . Machines Disabled . | . . Actions | -11 -10 --------- Run | Yrd Mat Total 173 | 59 114 Wait 61 | . 61 Move 99 | 46 53 Hop . | . . Pick Up 7 | 7 . Fast Attach 5 | 5 . Attach 1 | 1 . Detach . | . . Swap . | . . Drop . | . . Fire . | . . Melee . | . . Ram . | . . Kick . | . . Crush . | . . Escape Stasis . | . . Rewire . | . . Trap . | . . Miscellaneous . | . . Route ------- -11/Scrapyard -10/Materials History --------- Turn | Location | Event 31 | -11/Scrapyard | Discovered new exit (range 15) 80 | -11/Scrapyard | Entered Materials 177 | -10/Materials | Core integrity fell below 50% 191 | -10/Materials | Core integrity fell below 20% 194 | -10/Materials | Destroyed by G-34 Mercenary with Small Laser Last Messages --------------- Initiating a new build process requires an [Authchip], but an internal generator provides all the energy required for fabrication, and matter input is drawn from the local network as per fabricator specification, while some schematics may call for preassembled subcomponents. Advanced fabricators can complete complex tasks more quickly. [Achievement: True Hacker] >>Trojan(Botnet) Trojan loaded successfully. Testing... Terminal linked with 0 systems. Awaiting botnet instructions. 00140_ Critical hit (Burn: +37). 00148_ EM Pulse Gun destroyed. 00156_ Com. Wheel destroyed. 00158_ Ion Engine destroyed. 00163_ Sml. Laser destroyed. 00182_ Com. Wheel destroyed. Map ----- +----------------------------------------------------+ | ???????????????????######????????????????????????? | | ???????????????????# #######?????????????????? | | ???????????????????# """ ## ############??????? | | ???????????????????# """ ## ??? | | ???????????????##### """ + ??? | | ???????????????# # """ ## #######+####/#????? | | ???????????????# # """ ###+####????????????????? | | ???????????????# # ## #????????????????? | | ???????????????# ###+#### #????????????????? | | ???????????????# # #????????????????? | | ???????????????# + #????????????????? | | ???????????????# "" # #????????????????? | | ???????????????# "T # #????????????????? | | ???????????????# "" # #????????????????? | | ???????????????# # #????????????????? | | ???????????????# # #????????????????? | | ???????????????# # #????????????????? | | ?????????????### # #????????????????? | | ?????????? # #????????????????? | | ???????????########### #######????????????????? | | ?????????????????????# #??????????????????????? | | ?????????????????????# #??????????????????????? | | ?????????????????????# #??????????????????????? | | ?????????????????????# #??????????????????????? | | ?????????????????????# r #??????????????????????? | | ?????????????????????#u @#??????????????????????? | | ?????????????????????# #?????????????????????? | | ????????^?????????? ^g #?????????????????????? | | ???^??????^????? +?????????????????????? | | ?????????????? g #?????????????????????? | | ??????^????? """" """" #?????????????????????? | | ???????????????""" """" #?????????????????????? | | ????????????????"" """" #?????????????????????? | | ???????????????? ? ?????????????????????? | | ???????????????? ???? a ?????????????????????? | | ??????????????? ????? ?????????????????????? | | ??????????????????????######?????????????????????? | | ?????????????????????????????????????????????????? | | ?????????????????????????????????????????????????? | | ?????????????????????????????????????????????????? | | ?????????????????????????????????????????????????? | | ?????????????????????????????????????????????????? | | ?????????????????????????????????????????????????? | | ?????????????????????????????????????????????????? | | ?????????????????????????????????????????????????? | | ?????????????????????????????????????????????????? | | ?????????????????????????????????????????????????? | | ?????????????????????????????????????????????????? | | ?????????????????????????????????????????????????? | | ?????????????????????????????????????????????????? | +----------------------------------------------------+ Best States ------------- Heat Dissipation 25 Energy Generation 10 Energy Capacity 250 Matter Stores 291 Matter Capacity 300 Sight Range 16 Terrain Scan Density 10 Evasion (%) 40 Item Schematics ----------------- None Robot Schematics ------------------ None Fabricated ------------ Nothing Alien Tech Used ----------------- None Achievements -------------- True Hacker Challenges ------------ None Game ------ Seed PlasmaServoFragment Manual? 0 Play Time 00:03:41 Cumulative 21.5 hours Start 2024.03.31 @ 14:32:05 End 2024.03.31 @ 14:34:18 Sessions 1 Manual Loads 0 Difficulty Rogue Special Mode None Game No. 46 Rogue 46 Adventurer 0 Explorer 0 Win Type - Total 0 Types 0/0/0/0/0/0/0/0/0 Lore% 21 Gallery% 30 Achievement% 21 Wizard Run 0 Options --------- Layout 1 ASCII 0 Keyboard 0 Movement Numpad Keybinds 0 Fullscreen 1 Font 24/Terminus Map View 50x35 Zoom Use 0% Tactical HUD 1 Map Filters NONE Filters NONE Steam 1 RUN: 9d077cb0-33ad-484d-9449-b6612059e3ca